[Event "Titled Tuesday Blitz December 20 Early 2022"]
[White "The_Machine04"]
[Black "Kazgildy, Fariza"]
[BlackFideId "13724860"]
[WhiteElo "2652"]
[BlackElo "1189"]
[Result "0-1"]
[Round "07"]
[TimeControl "180+2"]
[Date "2022.12.20"]
[WhiteClock "0:00:01"]
[BlackClock "0:00:19"]

1. d4 {[%clk 0:03:00]}  Nf6 {[%clk 0:03:00]} 2. Nf3 {[%clk 0:02:55]}  d5 {[%clk 0:02:59]} 3. Nbd2 {[%clk 0:02:54]}  c5 {[%clk 0:02:49]} 4. e3 {[%clk 0:02:53]}  Nc6 {[%clk 0:02:49]} 5. c3 {[%clk 0:02:52]}  Bf5 {[%clk 0:02:37]} 6. dxc5 {[%clk 0:02:42]}  a5 {[%clk 0:02:34]} 7. Bb5 {[%clk 0:02:40]}  e6 {[%clk 0:02:27]} 8. b4 {[%clk 0:02:38]}  Rc8 {[%clk 0:01:52]} 9. Nd4 {[%clk 0:02:35]}  Bg6 {[%clk 0:01:51]} 10. Qa4 {[%clk 0:02:33]}  Qc7 {[%clk 0:01:44]} 11. f4 {[%clk 0:01:42]}  Be7 {[%clk 0:01:35]} 12. N2f3 {[%clk 0:01:27]}  O-O {[%clk 0:01:27]} 13. Bxc6 {[%clk 0:01:06]}  bxc6 {[%clk 0:01:26]} 14. Ne5 {[%clk 0:01:06]}  Ne4 {[%clk 0:01:05]} 15. Bd2 {[%clk 0:01:00]}  Bf6 {[%clk 0:00:41]} 16. Ndxc6 {[%clk 0:00:34]}  axb4 {[%clk 0:00:29]} 17. cxb4 {[%clk 0:00:22]}  Nxd2 {[%clk 0:00:29]} 18. Kxd2 {[%clk 0:00:20]}  Be4 {[%clk 0:00:30]} 19. Rhc1 {[%clk 0:00:17]}  Bxg2 {[%clk 0:00:25]} 20. b5 {[%clk 0:00:15]}  d4 {[%clk 0:00:22]} 21. exd4 {[%clk 0:00:12]}  Bxc6 {[%clk 0:00:22]} 22. bxc6 {[%clk 0:00:09]}  Bxe5 {[%clk 0:00:21]} 23. fxe5 {[%clk 0:00:09]}  Ra8 {[%clk 0:00:21]} 24. Qc4 {[%clk 0:00:08]}  Qxc6 {[%clk 0:00:21]} 25. Rg1 {[%clk 0:00:07]}  Rfd8 {[%clk 0:00:22]} 26. Rab1 {[%clk 0:00:06]}  Ra4 {[%clk 0:00:20]} 27. Rb4 {[%clk 0:00:05]}  Rxb4 {[%clk 0:00:20]} 28. Qxb4 {[%clk 0:00:06]}  Qe4 {[%clk 0:00:19]} 29. Kc1 {[%clk 0:00:01]}  Qe3+ {[%clk 0:00:20]} 30. Kc2 {[%clk 0:00:01]}  Qxg1 {[%clk 0:00:20]} 31. c6 {[%clk 0:00:01]}  Qxd4 {[%clk 0:00:19]} 0-1


[Site "https://www.chess.com"]

[Event "Titled Tuesday Blitz December 20 Early 2022"]
[White "TheoSlade"]
[Black "AttractiveChess"]
[WhiteElo "2571"]
[BlackElo "2784"]
[Result "0-1"]
[Round "07"]
[TimeControl "180+2"]
[Date "2022.12.20"]
[WhiteClock "0:01:13"]
[BlackClock "0:02:33"]

1. d4 {[%clk 0:02:59]}  Nf6 {[%clk 0:02:50]} 2. c4 {[%clk 0:03:00]}  e6 {[%clk 0:02:51]} 3. g3 {[%clk 0:03:00]}  d5 {[%clk 0:02:51]} 4. Bg2 {[%clk 0:03:01]}  dxc4 {[%clk 0:02:52]} 5. Nf3 {[%clk 0:03:01]}  Bd7 {[%clk 0:02:52]} 6. Ne5 {[%clk 0:02:59]}  Bc6 {[%clk 0:02:53]} 7. Nxc6 {[%clk 0:02:58]}  Nxc6 {[%clk 0:02:53]} 8. Bxc6+ {[%clk 0:02:51]}  bxc6 {[%clk 0:02:54]} 9. O-O {[%clk 0:02:48]}  Qd7 {[%clk 0:02:53]} 10. e3 {[%clk 0:02:37]}  c5 {[%clk 0:02:51]} 11. dxc5 {[%clk 0:02:35]}  Bxc5 {[%clk 0:02:50]} 12. Qxd7+ {[%clk 0:02:32]}  Nxd7 {[%clk 0:02:49]} 13. Bd2 {[%clk 0:02:26]}  O-O-O {[%clk 0:02:40]} 14. Bc3 {[%clk 0:02:25]}  f6 {[%clk 0:02:40]} 15. Nd2 {[%clk 0:02:25]}  Nb6 {[%clk 0:02:41]} 16. a4 {[%clk 0:02:16]}  Rd3 {[%clk 0:02:40]} 17. a5 {[%clk 0:02:14]}  Nd5 {[%clk 0:02:41]} 18. Nxc4 {[%clk 0:01:50]}  Nxc3 {[%clk 0:02:39]} 19. bxc3 {[%clk 0:01:51]}  Rxc3 {[%clk 0:02:39]} 20. Rfc1 {[%clk 0:01:50]}  Rxc1+ {[%clk 0:02:39]} 21. Rxc1 {[%clk 0:01:51]}  Rd8 {[%clk 0:02:40]} 22. Ne5 {[%clk 0:01:42]}  Ba3 {[%clk 0:02:33]} 23. Rc3 {[%clk 0:01:13]}  Bb2 {[%clk 0:02:33]} 0-1


[Site "https://www.chess.com"]

[Event "Titled Tuesday Blitz December 20 Early 2022"]
[White "Truequitos"]
[Black "LileKoridze"]
[WhiteElo "2536"]
[BlackElo "2345"]
[Result "1-0"]
[Round "07"]
[TimeControl "180+2"]
[Date "2022.12.20"]
[WhiteClock "0:00:59"]
[BlackClock "0:01:22"]

1. Nf3 {[%clk 0:02:54]}  d5 {[%clk 0:02:59]} 2. g3 {[%clk 0:02:53]}  Nf6 {[%clk 0:03:00]} 3. Bg2 {[%clk 0:02:54]}  c5 {[%clk 0:03:00]} 4. O-O {[%clk 0:02:54]}  e6 {[%clk 0:03:00]} 5. d3 {[%clk 0:02:55]}  Nc6 {[%clk 0:03:00]} 6. Nbd2 {[%clk 0:02:55]}  Bd6 {[%clk 0:03:00]} 7. e4 {[%clk 0:02:56]}  O-O {[%clk 0:03:00]} 8. Re1 {[%clk 0:02:55]}  Qc7 {[%clk 0:02:59]} 9. Qe2 {[%clk 0:02:55]}  dxe4 {[%clk 0:02:56]} 10. Nxe4 {[%clk 0:02:54]}  Nxe4 {[%clk 0:02:56]} 11. dxe4 {[%clk 0:02:55]}  e5 {[%clk 0:02:50]} 12. c3 {[%clk 0:02:50]}  f6 {[%clk 0:02:41]} 13. Qc4+ {[%clk 0:02:40]}  Kh8 {[%clk 0:02:41]} 14. Nh4 {[%clk 0:02:38]}  Re8 {[%clk 0:02:39]} 15. Nf5 {[%clk 0:02:36]}  Be6 {[%clk 0:02:39]} 16. Qe2 {[%clk 0:02:34]}  Rad8 {[%clk 0:02:39]} 17. Be3 {[%clk 0:02:32]}  b6 {[%clk 0:02:37]} 18. Red1 {[%clk 0:02:31]}  Bf8 {[%clk 0:02:32]} 19. Qb5 {[%clk 0:02:24]}  Bxf5 {[%clk 0:02:26]} 20. exf5 {[%clk 0:02:24]}  Ne7 {[%clk 0:02:27]} 21. Be4 {[%clk 0:02:19]}  Rxd1+ {[%clk 0:02:18]} 22. Rxd1 {[%clk 0:02:20]}  Rd8 {[%clk 0:02:18]} 23. Qe2 {[%clk 0:02:15]}  Qc8 {[%clk 0:02:17]} 24. g4 {[%clk 0:02:14]}  g6 {[%clk 0:02:15]} 25. Rd3 {[%clk 0:01:48]}  Kg7 {[%clk 0:01:59]} 26. Qd2 {[%clk 0:01:39]}  Rxd3 {[%clk 0:01:56]} 27. Qxd3 {[%clk 0:01:39]}  gxf5 {[%clk 0:01:50]} 28. gxf5 {[%clk 0:01:40]}  Kf7 {[%clk 0:01:43]} 29. Qc4+ {[%clk 0:01:30]}  Kg7 {[%clk 0:01:42]} 30. Bc2 {[%clk 0:01:25]}  h5 {[%clk 0:01:34]} 31. Qe4 {[%clk 0:01:14]}  Qd7 {[%clk 0:01:28]} 32. Qg2+ {[%clk 0:01:08]}  Kh7 {[%clk 0:01:28]} 33. Qf3 {[%clk 0:01:08]}  Kg7 {[%clk 0:01:27]} 34. Qxh5 {[%clk 0:01:06]}  Nd5 {[%clk 0:01:23]} 35. Bh6+ {[%clk 0:01:04]}  Kg8 {[%clk 0:01:21]} 36. Qg6+ {[%clk 0:01:02]}  Bg7 {[%clk 0:01:22]} 37. Bb3 {[%clk 0:00:59]} 1-0


[Site "https://www.chess.com"]

[Event "Titled Tuesday Blitz December 20 Early 2022"]
[White "Vesper, Horst"]
[Black "Castro Andrade, Seirbert Cristian"]
[WhiteFideId "24677159"]
[BlackFideId "3863336"]
[WhiteElo "2028"]
[BlackElo "1364"]
[Result "1/2-1/2"]
[Round "07"]
[TimeControl "180+2"]
[Date "2022.12.20"]
[WhiteClock "0:00:11"]
[BlackClock "0:00:32"]

1. e4 {[%clk 0:03:00]}  c5 {[%clk 0:02:59]} 2. Nc3 {[%clk 0:03:00]}  Nc6 {[%clk 0:02:59]} 3. Bb5 {[%clk 0:03:01]}  Nd4 {[%clk 0:02:58]} 4. Bc4 {[%clk 0:03:01]}  e6 {[%clk 0:02:53]} 5. Nge2 {[%clk 0:03:01]}  Nc6 {[%clk 0:02:51]} 6. d4 {[%clk 0:02:56]}  cxd4 {[%clk 0:02:51]} 7. Nxd4 {[%clk 0:02:57]}  a6 {[%clk 0:02:49]} 8. O-O {[%clk 0:02:56]}  Qc7 {[%clk 0:02:47]} 9. Bb3 {[%clk 0:02:53]}  Nf6 {[%clk 0:02:46]} 10. Be3 {[%clk 0:02:50]}  Be7 {[%clk 0:02:42]} 11. f4 {[%clk 0:02:47]}  d6 {[%clk 0:02:42]} 12. a4 {[%clk 0:02:43]}  O-O {[%clk 0:02:41]} 13. Qd2 {[%clk 0:02:40]}  Bd7 {[%clk 0:02:37]} 14. Rad1 {[%clk 0:02:39]}  Nxd4 {[%clk 0:02:30]} 15. Bxd4 {[%clk 0:02:38]}  b5 {[%clk 0:02:28]} 16. Bxf6 {[%clk 0:02:28]}  Bxf6 {[%clk 0:02:22]} 17. Qxd6 {[%clk 0:02:27]}  Qa7+ {[%clk 0:02:21]} 18. Kh1 {[%clk 0:02:27]}  Rfd8 {[%clk 0:02:04]} 19. e5 {[%clk 0:02:25]}  Be8 {[%clk 0:02:01]} 20. Qb4 {[%clk 0:02:11]}  Be7 {[%clk 0:02:00]} 21. Qe4 {[%clk 0:02:11]}  Qc7 {[%clk 0:01:50]} 22. axb5 {[%clk 0:02:08]}  axb5 {[%clk 0:01:50]} 23. f5 {[%clk 0:02:08]}  Bc6 {[%clk 0:01:49]} 24. Qg4 {[%clk 0:02:06]}  Rxd1 {[%clk 0:01:42]} 25. Rxd1 {[%clk 0:01:55]}  Qxe5 {[%clk 0:01:41]} 26. fxe6 {[%clk 0:01:54]}  fxe6 {[%clk 0:01:33]} 27. Qxe6+ {[%clk 0:01:50]}  Qxe6 {[%clk 0:01:33]} 28. Bxe6+ {[%clk 0:01:50]}  Kh8 {[%clk 0:01:34]} 29. Bd5 {[%clk 0:01:48]}  Bxd5 {[%clk 0:01:34]} 30. Nxd5 {[%clk 0:01:48]}  Bf8 {[%clk 0:01:33]} 31. g4 {[%clk 0:01:41]}  b4 {[%clk 0:01:26]} 32. Nf4 {[%clk 0:01:34]}  Kg8 {[%clk 0:01:19]} 33. Kg2 {[%clk 0:01:24]}  g6 {[%clk 0:01:16]} 34. Rd4 {[%clk 0:01:14]}  Rc8 {[%clk 0:01:14]} 35. Ne6 {[%clk 0:01:06]}  Rxc2+ {[%clk 0:01:13]} 36. Kg3 {[%clk 0:01:01]}  Be7 {[%clk 0:01:13]} 37. Rd7 {[%clk 0:01:01]}  Kf7 {[%clk 0:01:11]} 38. Nf4 {[%clk 0:00:49]}  Rxb2 {[%clk 0:00:59]} 39. Nd5 {[%clk 0:00:37]}  Re2 {[%clk 0:00:57]} 40. Kf3 {[%clk 0:00:27]}  Ke8 {[%clk 0:00:52]} 41. Rb7 {[%clk 0:00:20]}  Re5 {[%clk 0:00:51]} 42. Nxe7 {[%clk 0:00:17]}  Rxe7 {[%clk 0:00:51]} 43. Rxb4 {[%clk 0:00:18]}  Kf7 {[%clk 0:00:51]} 44. h4 {[%clk 0:00:17]}  Kg7 {[%clk 0:00:51]} 45. Kf4 {[%clk 0:00:16]}  Rf7+ {[%clk 0:00:51]} 46. Kg3 {[%clk 0:00:17]}  h6 {[%clk 0:00:51]} 47. Rb6 {[%clk 0:00:16]}  Re7 {[%clk 0:00:51]} 48. Ra6 {[%clk 0:00:14]}  Rb7 {[%clk 0:00:50]} 49. Rc6 {[%clk 0:00:14]}  Rb3+ {[%clk 0:00:51]} 50. Kf4 {[%clk 0:00:14]}  Rb7 {[%clk 0:00:51]} 51. Ra6 {[%clk 0:00:12]}  Rc7 {[%clk 0:00:50]} 52. Kg3 {[%clk 0:00:12]}  Rf7 {[%clk 0:00:50]} 53. Rb6 {[%clk 0:00:12]}  Re7 {[%clk 0:00:50]} 54. Rc6 {[%clk 0:00:12]}  Kf7 {[%clk 0:00:50]} 55. Rb6 {[%clk 0:00:11]}  Ra7 {[%clk 0:00:50]} 56. h5 {[%clk 0:00:11]}  Ra3+ {[%clk 0:00:44]} 57. Kf4 {[%clk 0:00:10]}  Ra4+ {[%clk 0:00:45]} 58. Kf3 {[%clk 0:00:09]}  gxh5 {[%clk 0:00:42]} 59. gxh5 {[%clk 0:00:09]}  Kg7 {[%clk 0:00:42]} 60. Kg3 {[%clk 0:00:09]}  Rc4 {[%clk 0:00:42]} 61. Kf3 {[%clk 0:00:09]}  Rh4 {[%clk 0:00:42]} 62. Rb5 {[%clk 0:00:09]}  Kf6 {[%clk 0:00:40]} 63. Kg3 {[%clk 0:00:10]}  Ra4 {[%clk 0:00:40]} 64. Kh3 {[%clk 0:00:10]}  Re4 {[%clk 0:00:38]} 65. Kg3 {[%clk 0:00:10]}  Re3+ {[%clk 0:00:37]} 66. Kg4 {[%clk 0:00:10]}  Re4+ {[%clk 0:00:37]} 67. Kf3 {[%clk 0:00:11]}  Re8 {[%clk 0:00:36]} 68. Kg4 {[%clk 0:00:11]}  Re4+ {[%clk 0:00:35]} 69. Kf3 {[%clk 0:00:11]}  Ra4 {[%clk 0:00:35]} 70. Kg3 {[%clk 0:00:12]}  Rc4 {[%clk 0:00:34]} 71. Kf3 {[%clk 0:00:11]}  Rd4 {[%clk 0:00:32]} 72. Kg3 {[%clk 0:00:11]}  Re4 {[%clk 0:00:32]} 73. Kf3 {[%clk 0:00:11]} 1/2-1/2


[Site "https://www.chess.com"]

[Event "Titled Tuesday Blitz December 20 Early 2022"]
[White "VitorBronson"]
[Black "ChessicallyInclined"]
[WhiteElo "2459"]
[BlackElo "2693"]
[Result "0-1"]
[Round "07"]
[TimeControl "180+2"]
[Date "2022.12.20"]
[WhiteClock "0:00:12"]
[BlackClock "0:00:05"]

1. e4 {[%clk 0:03:00]}  a6 {[%clk 0:03:00]} 2. d4 {[%clk 0:02:59]}  e6 {[%clk 0:02:59]} 3. Nf3 {[%clk 0:02:57]}  d5 {[%clk 0:02:55]} 4. e5 {[%clk 0:02:57]}  c5 {[%clk 0:02:55]} 5. c3 {[%clk 0:02:57]}  Nc6 {[%clk 0:02:54]} 6. Bd3 {[%clk 0:02:51]}  b5 {[%clk 0:02:53]} 7. O-O {[%clk 0:02:49]}  c4 {[%clk 0:02:53]} 8. Bc2 {[%clk 0:02:48]}  Bd7 {[%clk 0:02:50]} 9. Ne1 {[%clk 0:02:43]}  Qb6 {[%clk 0:02:46]} 10. f4 {[%clk 0:02:43]}  f5 {[%clk 0:02:46]} 11. exf6 {[%clk 0:02:42]}  Nxf6 {[%clk 0:02:46]} 12. f5 {[%clk 0:02:40]}  exf5 {[%clk 0:02:45]} 13. Bxf5 {[%clk 0:02:39]}  Bxf5 {[%clk 0:02:46]} 14. Rxf5 {[%clk 0:02:40]}  Bd6 {[%clk 0:02:46]} 15. Rxf6 {[%clk 0:02:38]}  gxf6 {[%clk 0:02:45]} 16. Qh5+ {[%clk 0:02:38]}  Ke7 {[%clk 0:02:43]} 17. Qxd5 {[%clk 0:02:36]}  Rad8 {[%clk 0:02:26]} 18. Qe4+ {[%clk 0:02:35]}  Kd7 {[%clk 0:02:26]} 19. Nf3 {[%clk 0:02:32]}  Kc7 {[%clk 0:02:24]} 20. a4 {[%clk 0:02:31]}  Rde8 {[%clk 0:02:12]} 21. Qf5 {[%clk 0:02:28]}  Ne7 {[%clk 0:02:12]} 22. Qh5 {[%clk 0:02:21]}  Kb7 {[%clk 0:02:01]} 23. axb5 {[%clk 0:02:21]}  axb5 {[%clk 0:02:02]} 24. Na3 {[%clk 0:02:22]}  Ra8 {[%clk 0:01:59]} 25. Rb1 {[%clk 0:02:14]}  Ra5 {[%clk 0:01:47]} 26. Qf7 {[%clk 0:01:52]}  Rc8 {[%clk 0:01:38]} 27. Kh1 {[%clk 0:01:47]}  Rc7 {[%clk 0:01:27]} 28. Qxf6 {[%clk 0:01:45]}  Bxa3 {[%clk 0:01:26]} 29. Qxb6+ {[%clk 0:01:39]}  Kxb6 {[%clk 0:01:27]} 30. bxa3 {[%clk 0:01:40]}  Nd5 {[%clk 0:01:27]} 31. Bb2 {[%clk 0:01:35]}  Re7 {[%clk 0:01:18]} 32. Ne5 {[%clk 0:01:35]}  Ra8 {[%clk 0:01:10]} 33. h4 {[%clk 0:01:34]}  Rf8 {[%clk 0:00:56]} 34. a4 {[%clk 0:01:33]}  Rf4 {[%clk 0:00:35]} 35. g3 {[%clk 0:01:31]}  Rf2 {[%clk 0:00:33]} 36. axb5 {[%clk 0:01:27]}  Rc7 {[%clk 0:00:31]} 37. Ba3 {[%clk 0:01:24]}  Nxc3 {[%clk 0:00:26]} 38. Bc5+ {[%clk 0:01:24]}  Kb7 {[%clk 0:00:26]} 39. Ra1 {[%clk 0:01:23]}  Nxb5 {[%clk 0:00:20]} 40. Nxc4 {[%clk 0:01:24]}  Kc6 {[%clk 0:00:11]} 41. Ra5 {[%clk 0:01:11]}  Re2 {[%clk 0:00:07]} 42. Ra1 {[%clk 0:01:02]}  Rf7 {[%clk 0:00:04]} 43. Rb1 {[%clk 0:00:39]}  Nc3 {[%clk 0:00:04]} 44. Rb6+ {[%clk 0:00:37]}  Kd5 {[%clk 0:00:04]} 45. Ne3+ {[%clk 0:00:12]}  Rxe3 {[%clk 0:00:04]} 46. Rd6+ {[%clk 0:00:12]}  Kc4 {[%clk 0:00:04]} 47. Kg2 {[%clk 0:00:12]}  Re2+ {[%clk 0:00:04]} 48. Kh3 {[%clk 0:00:13]}  Ne4 {[%clk 0:00:04]} 49. Re6 {[%clk 0:00:13]}  Nf2+ {[%clk 0:00:03]} 50. Kg2 {[%clk 0:00:12]}  Rxe6 {[%clk 0:00:04]} 51. Bd6 {[%clk 0:00:12]}  Rxd6 {[%clk 0:00:04]} 52. g4 {[%clk 0:00:10]}  Rxd4 {[%clk 0:00:04]} 53. g5 {[%clk 0:00:11]}  Rg4+ {[%clk 0:00:04]} 54. Kh2 {[%clk 0:00:11]}  Rf3 {[%clk 0:00:05]} 55. h5 {[%clk 0:00:12]}  Rh3# {[%clk 0:00:05]} 0-1


[Site "https://www.chess.com"]

[Event "Titled Tuesday Blitz December 20 Early 2022"]
[White "emeli_chess"]
[Black "Tsyhanchuk_Stanislav"]
[WhiteElo "2405"]
[BlackElo "2335"]
[Result "0-1"]
[Round "07"]
[TimeControl "180+2"]
[Date "2022.12.20"]
[WhiteClock "0:00:11"]
[BlackClock "0:02:03"]

1. d4 {[%clk 0:03:00]}  d5 {[%clk 0:02:59]} 2. c4 {[%clk 0:03:01]}  c6 {[%clk 0:02:59]} 3. Nc3 {[%clk 0:03:01]}  Nf6 {[%clk 0:02:59]} 4. e3 {[%clk 0:03:00]}  g6 {[%clk 0:02:54]} 5. Nf3 {[%clk 0:02:59]}  Bg7 {[%clk 0:02:54]} 6. Be2 {[%clk 0:03:00]}  O-O {[%clk 0:02:54]} 7. O-O {[%clk 0:03:00]}  e6 {[%clk 0:02:55]} 8. Bd2 {[%clk 0:02:51]}  b6 {[%clk 0:02:55]} 9. Rc1 {[%clk 0:02:50]}  Bb7 {[%clk 0:02:55]} 10. cxd5 {[%clk 0:02:48]}  exd5 {[%clk 0:02:54]} 11. Ne5 {[%clk 0:02:41]}  Nfd7 {[%clk 0:02:51]} 12. f4 {[%clk 0:02:32]}  Nxe5 {[%clk 0:02:51]} 13. dxe5 {[%clk 0:02:29]}  f6 {[%clk 0:02:48]} 14. exf6 {[%clk 0:02:14]}  Bxf6 {[%clk 0:02:47]} 15. Bf3 {[%clk 0:02:08]}  Nd7 {[%clk 0:02:42]} 16. e4 {[%clk 0:02:06]}  d4 {[%clk 0:02:41]} 17. Ne2 {[%clk 0:02:04]}  Nc5 {[%clk 0:02:38]} 18. e5 {[%clk 0:02:02]}  Bg7 {[%clk 0:02:36]} 19. Bb4 {[%clk 0:02:02]}  d3 {[%clk 0:02:30]} 20. Bxc5 {[%clk 0:01:05]}  bxc5 {[%clk 0:02:29]} 21. Qb3+ {[%clk 0:01:00]}  Rf7 {[%clk 0:02:29]} 22. Nc3 {[%clk 0:00:53]}  Qd4+ {[%clk 0:02:24]} 23. Kh1 {[%clk 0:00:52]}  c4 {[%clk 0:02:22]} 24. Qa4 {[%clk 0:00:43]}  Rxf4 {[%clk 0:02:14]} 25. Bxc6 {[%clk 0:00:41]}  Bxc6 {[%clk 0:02:06]} 26. Qxc6 {[%clk 0:00:40]}  Raf8 {[%clk 0:02:06]} 27. Rxf4 {[%clk 0:00:32]}  Qxf4 {[%clk 0:02:05]} 28. g3 {[%clk 0:00:11]}  Qxc1+ {[%clk 0:02:03]} 0-1


[Site "https://www.chess.com"]

[Event "Titled Tuesday Blitz December 20 Early 2022"]
[White "exoticprincess"]
[Black "Timofeeva, Galina"]
[BlackFideId "14106175"]
[WhiteElo "3057"]
[BlackElo "1955"]
[Result "1-0"]
[Round "07"]
[TimeControl "180+2"]
[Date "2022.12.20"]
[WhiteClock "0:00:14"]
[BlackClock "0:00:09"]

1. e4 {[%clk 0:03:00]}  c5 {[%clk 0:02:59]} 2. c3 {[%clk 0:03:00]}  Nf6 {[%clk 0:02:58]} 3. e5 {[%clk 0:03:00]}  Nd5 {[%clk 0:02:58]} 4. d4 {[%clk 0:03:00]}  cxd4 {[%clk 0:02:58]} 5. Qxd4 {[%clk 0:03:01]}  e6 {[%clk 0:02:57]} 6. Nf3 {[%clk 0:03:02]}  Nc6 {[%clk 0:02:57]} 7. Qg4 {[%clk 0:03:03]}  d6 {[%clk 0:02:46]} 8. Bb5 {[%clk 0:03:01]}  Bd7 {[%clk 0:02:42]} 9. exd6 {[%clk 0:03:00]}  Nf6 {[%clk 0:02:41]} 10. Qf4 {[%clk 0:02:53]}  Qb6 {[%clk 0:02:39]} 11. Na3 {[%clk 0:02:50]}  a6 {[%clk 0:02:39]} 12. Be2 {[%clk 0:02:50]}  Qc5 {[%clk 0:02:14]} 13. Nc4 {[%clk 0:02:33]}  Nd5 {[%clk 0:01:56]} 14. Qg3 {[%clk 0:02:31]}  b5 {[%clk 0:01:55]} 15. Nce5 {[%clk 0:02:24]}  Qxd6 {[%clk 0:01:51]} 16. O-O {[%clk 0:02:17]}  Nxe5 {[%clk 0:01:30]} 17. Nxe5 {[%clk 0:02:18]}  h5 {[%clk 0:01:29]} 18. h4 {[%clk 0:01:58]}  Qc7 {[%clk 0:01:28]} 19. Nxd7 {[%clk 0:01:47]}  Qxd7 {[%clk 0:01:22]} 20. Rd1 {[%clk 0:01:44]}  Qd6 {[%clk 0:01:03]} 21. Qxd6 {[%clk 0:01:18]}  Bxd6 {[%clk 0:01:02]} 22. a4 {[%clk 0:01:16]}  Rb8 {[%clk 0:00:56]} 23. axb5 {[%clk 0:01:15]}  axb5 {[%clk 0:00:56]} 24. Ra5 {[%clk 0:01:09]}  Ke7 {[%clk 0:00:51]} 25. Rxb5 {[%clk 0:01:08]}  Rxb5 {[%clk 0:00:50]} 26. Bxb5 {[%clk 0:01:09]}  Bf4 {[%clk 0:00:40]} 27. Bxf4 {[%clk 0:01:00]}  Nxf4 {[%clk 0:00:40]} 28. g3 {[%clk 0:01:01]}  Nd5 {[%clk 0:00:40]} 29. Bc6 {[%clk 0:00:57]}  Nb6 {[%clk 0:00:39]} 30. b4 {[%clk 0:00:44]}  Rc8 {[%clk 0:00:36]} 31. b5 {[%clk 0:00:45]}  Rc7 {[%clk 0:00:33]} 32. Kg2 {[%clk 0:00:42]}  Ra7 {[%clk 0:00:33]} 33. Kf3 {[%clk 0:00:39]}  Ra3 {[%clk 0:00:32]} 34. Rd3 {[%clk 0:00:39]}  Na4 {[%clk 0:00:29]} 35. Ke3 {[%clk 0:00:37]}  Rxc3 {[%clk 0:00:25]} 36. Rxc3 {[%clk 0:00:37]}  Nxc3 {[%clk 0:00:25]} 37. b6 {[%clk 0:00:37]}  Kd6 {[%clk 0:00:23]} 38. b7 {[%clk 0:00:30]}  Kc7 {[%clk 0:00:23]} 39. Bf3 {[%clk 0:00:28]}  Nd5+ {[%clk 0:00:18]} 40. Bxd5 {[%clk 0:00:24]}  exd5 {[%clk 0:00:18]} 41. Kd4 {[%clk 0:00:25]}  Kxb7 {[%clk 0:00:19]} 42. Kxd5 {[%clk 0:00:26]}  Kc7 {[%clk 0:00:19]} 43. Ke5 {[%clk 0:00:26]}  Kd7 {[%clk 0:00:19]} 44. Kf5 {[%clk 0:00:23]}  Ke7 {[%clk 0:00:19]} 45. Kg5 {[%clk 0:00:22]}  g6 {[%clk 0:00:19]} 46. f3 {[%clk 0:00:21]}  Ke6 {[%clk 0:00:18]} 47. f4 {[%clk 0:00:22]}  Kd5 {[%clk 0:00:06]} 48. f5 {[%clk 0:00:22]}  gxf5 {[%clk 0:00:06]} 49. Kxh5 {[%clk 0:00:12]}  Ke5 {[%clk 0:00:06]} 50. Kg5 {[%clk 0:00:13]}  f6+ {[%clk 0:00:06]} 51. Kg6 {[%clk 0:00:13]}  f4 {[%clk 0:00:06]} 52. gxf4+ {[%clk 0:00:12]}  Kxf4 {[%clk 0:00:07]} 53. h5 {[%clk 0:00:12]}  Kg4 {[%clk 0:00:08]} 54. h6 {[%clk 0:00:13]}  f5 {[%clk 0:00:08]} 55. h7 {[%clk 0:00:14]}  f4 {[%clk 0:00:09]} 56. h8=Q {[%clk 0:00:15]}  f3 {[%clk 0:00:09]} 57. Qh2 {[%clk 0:00:13]}  f2 {[%clk 0:00:09]} 58. Qxf2 {[%clk 0:00:14]}  Kh3 {[%clk 0:00:09]} 59. Qf4 {[%clk 0:00:14]}  Kg2 {[%clk 0:00:09]} 60. Qe3 {[%clk 0:00:14]}  Kf1 {[%clk 0:00:09]} 61. Qd2 {[%clk 0:00:14]} 1-0


[Site "https://www.chess.com"]

[Event "Titled Tuesday Blitz December 20 Early 2022"]
[White "fks_stal_mielec"]
[Black "BetonCarlsen"]
[WhiteElo "2284"]
[BlackElo "2216"]
[Result "0-1"]
[Round "07"]
[TimeControl "180+2"]
[Date "2022.12.20"]
[WhiteClock "0:00:06"]
[BlackClock "0:00:12"]

1. d4 {[%clk 0:03:00]}  Nf6 {[%clk 0:02:29]} 2. c4 {[%clk 0:02:59]}  c5 {[%clk 0:02:29]} 3. d5 {[%clk 0:02:59]}  e6 {[%clk 0:02:29]} 4. Nc3 {[%clk 0:02:59]}  exd5 {[%clk 0:02:27]} 5. cxd5 {[%clk 0:03:00]}  d6 {[%clk 0:02:27]} 6. e4 {[%clk 0:03:00]}  g6 {[%clk 0:02:27]} 7. Be2 {[%clk 0:02:59]}  Bg7 {[%clk 0:02:28]} 8. Nf3 {[%clk 0:03:00]}  O-O {[%clk 0:02:28]} 9. O-O {[%clk 0:03:00]}  a6 {[%clk 0:02:24]} 10. a4 {[%clk 0:03:00]}  Bg4 {[%clk 0:02:23]} 11. Nd2 {[%clk 0:03:00]}  Bxe2 {[%clk 0:02:20]} 12. Qxe2 {[%clk 0:03:01]}  Re8 {[%clk 0:02:19]} 13. Nc4 {[%clk 0:02:59]}  Qc7 {[%clk 0:02:15]} 14. Bf4 {[%clk 0:02:56]}  Bf8 {[%clk 0:02:12]} 15. Bg5 {[%clk 0:02:32]}  Nbd7 {[%clk 0:02:09]} 16. f4 {[%clk 0:02:24]}  Bg7 {[%clk 0:01:47]} 17. Qd3 {[%clk 0:02:15]}  Rab8 {[%clk 0:01:44]} 18. a5 {[%clk 0:02:11]}  b5 {[%clk 0:01:35]} 19. axb6 {[%clk 0:02:10]}  Nxb6 {[%clk 0:01:36]} 20. Nxb6 {[%clk 0:02:08]}  Rxb6 {[%clk 0:01:35]} 21. Rxa6 {[%clk 0:01:59]}  Rxa6 {[%clk 0:01:30]} 22. Qxa6 {[%clk 0:01:58]}  Nxe4 {[%clk 0:01:30]} 23. Nb5 {[%clk 0:01:45]}  Qd7 {[%clk 0:01:24]} 24. Qc6 {[%clk 0:01:34]}  Qxc6 {[%clk 0:01:18]} 25. dxc6 {[%clk 0:01:35]}  Bxb2 {[%clk 0:01:17]} 26. c7 {[%clk 0:01:28]}  c4 {[%clk 0:01:11]} 27. Bd8 {[%clk 0:01:19]}  Bf6 {[%clk 0:00:58]} 28. c8=Q {[%clk 0:01:11]}  Rxd8 {[%clk 0:00:57]} 29. Qg4 {[%clk 0:00:50]}  d5 {[%clk 0:00:52]} 30. f5 {[%clk 0:00:48]}  h5 {[%clk 0:00:47]} 31. Qf4 {[%clk 0:00:34]}  g5 {[%clk 0:00:43]} 32. Qc7 {[%clk 0:00:28]}  c3 {[%clk 0:00:37]} 33. Nd4 {[%clk 0:00:28]}  Bxd4+ {[%clk 0:00:30]} 34. Kh1 {[%clk 0:00:26]}  Ra8 {[%clk 0:00:28]} 35. Qb7 {[%clk 0:00:15]}  Nf2+ {[%clk 0:00:26]} 36. Kg1 {[%clk 0:00:15]}  Ra2 {[%clk 0:00:19]} 37. Qxd5 {[%clk 0:00:12]}  Nh3+ {[%clk 0:00:17]} 38. Kh1 {[%clk 0:00:12]}  Nf2+ {[%clk 0:00:16]} 39. Kg1 {[%clk 0:00:11]}  Rd2 {[%clk 0:00:16]} 40. Qa8+ {[%clk 0:00:09]}  Kg7 {[%clk 0:00:16]} 41. Qf3 {[%clk 0:00:09]}  c2 {[%clk 0:00:15]} 42. Rxf2 {[%clk 0:00:08]}  Rd1+ {[%clk 0:00:13]} 43. Qxd1 {[%clk 0:00:06]}  cxd1=Q# {[%clk 0:00:12]} 0-1


[Site "https://www.chess.com"]